bitfinex/quotes_ETHUSD_20241207
["timestamp","ask_amount","ask_price","bid_price","bid_amount"]
[1733588970727,1.04765328,4001.3,4000.7,2.26107204]
[1733588971032,1.04765328,4001.3,4000.8,1.30082323]
[1733588971320,1.04765328,4001.3,4000.7,2.26107204]
[1733588971519,1.04765328,4001.3,4000.8,1.30082286]
[1733588971825,1.04765328,4001.3,4000.7,2.26107204]
[1733588973921,1.04765328,4001.2,4000.7,2.26107204]
[1733588974087,1.04765328,4001.2,4000.8,0.40605802]
[1733588974635,1.57109644,4001.4,4000.8,0.40605802]
[1733588974636,1.04765328,4001.3,4000.8,0.40605802]
[1733588975589,1.04765328,4001.3,4000.8,2.15569802]
[1733588977250,1.04765328,4001.4,4000.8,2.15569802]
[1733588977468,1.04765328,4001.3,4000.8,2.15569802]
[1733588977939,1.04765328,4001.3,4000.8,0.40605802]
[1733588978143,1.04765328,4001.3,4000.6,1.79950815]
[1733588978317,1.04765328,4001.3,4000.7,1.30082194]
[1733588978512,1.04765328,4001.3,4000.8,1.30082194]
[1733588978752,1.04765328,4001.3,4000.6,1.79950815]
[1733588978958,1.04765328,4001.3,4000.7,1.30085294]
[1733588979157,1.04765328,4001.3,4000.6,1.79950815]
[1733588979443,1.04765328,4001.3,4000.7,1.81224033]
[1733588979753,1.04765328,4001.2,4000.7,0.51139404]
[1733588981056,1.04765328,4001.3,4000.7,0.51139404]
[1733588982293,1.04765328,4001.2,4000.7,0.51139404]
[1733588982493,1.04765328,4001.3,4000.7,0.51139404]
[1733588982699,1.04765328,4001.2,4000.7,0.51139404]
[1733588989096,1.04765328,4001.2,4000.7,2.26108404]
[1733588989829,1.04765328,4001.2,4000.8,0.34663438]
[1733588991513,1.04765328,4001.1,4000.8,0.34663438]
[1733588992037,1.04765328,4001.2,4000.8,0.34663438]
[1733588992739,1.04765328,4001.1,4000.8,0.34663438]
[1733588994304,1.04765328,4001.2,4000.6,0.7564]
[1733588994657,1.57109644,4001.3,4000.6,2.05775656]
[1733588994658,1.04765328,4001.1,4000.6,2.05775656]
[1733588994816,1.04765328,4001.1,4000.7,1.30135656]
[1733588996554,1.04765328,4001.1,4000.6,1.79950815]
[1733588996789,1.04765328,4001.1,4000.7,1.301435]
[1733588997079,1.04765328,4001.1,4000.6,1.79950815]
[1733588997285,1.04765328,4001.1,4000.7,1.81283375]
[1733588997442,1.04765328,4001.1,4000.7,0.51139404]
[1733588998044,1.04765328,4001.0,4000.7,0.51139404]
[1733588998280,1.04765328,4001.1,4000.7,0.51139404]
[1733588998481,1.04765328,4001.1,4000.6,0.7564]
[1733588998784,1.04765328,4001.1,4000.7,1.30155846]
[1733588998946,1.04765328,4001.1,4000.6,0.7564]
[1733588999281,1.04765328,4001.1,4000.6,1.3015602]
[1733588999598,1.04765328,4001.1,4000.5,1.04310815]
[1733588999599,1.04765328,4000.9,4000.4,1.04310815]
[1733588999896,1.04765328,4000.9,4000.4,1.30161114]
[1733589000479,1.04765328,4000.8,4000.4,1.30161114]
[1733589001057,1.04765328,4000.9,4000.4,1.30161114]
[1733589001474,1.04765328,4000.9,4000.3,0.7671]
[1733589001654,1.04765328,4000.8,4000.4,1.30146984]
[1733589001857,1.04765328,4000.8,4000.2,1.04310815]
[1733589002348,1.04765328,4000.8,4000.3,1.30148724]
[1733589002544,1.04765328,4000.8,4000.1,1.04310815]
[1733589002980,1.04765328,4000.8,4000.1,2.34439127]
[1733589003153,1.04765328,4000.8,4000.2,1.30128312]
[1733589003340,1.69353031,4000.8,4000.0,1.04310815]
[1733589003547,1.04765328,4000.7,4000.0,2.34419865]
[1733589004294,1.69353031,4000.8,4000.0,2.34419865]
[1733589004495,3.44322031,4000.8,4000.0,2.34419865]
[1733589004650,3.44322031,4000.8,4000.1,1.3010905]
[1733589004851,3.44322031,4000.8,4000.0,1.04310815]
[1733589005278,3.44322031,4000.8,4000.1,1.30089909]
[1733589005494,1.04765328,4000.8,4000.1,1.88765075]
[1733589005660,1.04765328,4000.8,4000.2,3.05061106]
[1733589005865,1.74976,4000.6,4000.1,0.02499824]
[1733589006065,1.74976,4000.6,3999.5,2.62361042]
[1733589006066,1.07955075,4000.4,3999.7,1.04310815]
[1733589006251,1.04765328,4000.2,3999.2,0.8081]
[1733589006447,1.04765328,4000.2,3999.3,0.18512082]
[1733589006646,1.04765328,4000.1,3999.3,0.18512082]
[1733589006953,1.04765328,4000.3,3999.3,2.97852897]
[1733589007316,4.95043719,4000.5,3999.3,2.97852897]
[1733589007317,2.79749328,4000.4,3999.4,1.30015018]
[1733589007619,2.79749328,4000.4,3999.3,1.22822897]
[1733589007620,2.79749328,4000.4,3999.3,0.18512082]
[1733589007779,2.79749328,4000.4,3999.4,1.2997663]
[1733589007978,2.79749328,4000.4,3999.3,0.18512082]
[1733589008180,2.79749328,4000.4,3999.3,1.48488379]
[1733589008418,1.74984,4000.4,3999.3,0.18512082]
[1733589008929,2.34965405,4000.4,3999.4,1.2994587]
[1733589009102,3.39730733,4000.4,3999.2,0.8081]
[1733589009984,1.64746733,4000.4,3999.2,0.8081]
[1733589010384,0.59981405,4000.4,3999.3,1.7503]
[1733589010718,2.67720403,4000.5,3999.3,1.7503]
[1733589010903,2.67720403,4000.5,3999.2,0.8081]
[1733589011081,1.04765328,4000.5,3999.9,0.8081]
[1733589011279,1.04765328,4000.6,3999.9,0.8081]
[1733589011523,1.04765328,4000.7,3999.9,0.8081]
[1733589011725,2.12720403,4001.0,3999.9,2.55814]
[1733589012027,1.04765328,4000.9,3999.9,2.55814]
[1733589012222,1.04765328,4000.9,3999.9,2.813954]
[1733589012379,2.12720403,4001.0,4000.0,1.74999]
[1733589013422,2.12720403,4001.0,4000.1,1.74993]
[1733589014599,2.12720403,4001.0,3999.9,1.063914]
[1733589014782,1.07955075,4001.0,4000.2,1.7499]
[1733589014983,1.04765328,4001.1,4000.2,1.7499]
[1733589014984,0.55,4001.1,4000.2,1.7499]
[1733589015423,1.07955075,4001.0,4000.2,1.7499]
[1733589015832,1.07955075,4001.0,4000.0,1.75]
[1733589016009,1.07955075,4001.0,4000.2,1.7499]
[1733589016734,1.07955075,4001.0,4000.3,1.74986]
[1733589017523,1.07955075,4001.0,4000.1,0.4563994]
[1733589017828,1.04765328,4001.2,4000.1,0.4563994]
[1733589018012,1.89459679,4001.4,4000.7,1.74968]
[1733589018215,1.89459679,4001.4,4000.2,2.55801]
[1733589018216,1.89459679,4001.4,4000.8,1.924608]
[1733589018416,1.89459679,4001.4,4000.8,1.74964]
[1733589019089,0.84694351,4001.4,4000.8,1.74964]
[1733589019285,0.84694351,4001.4,4000.8,0.8081]
[1733589019507,0.84694351,4001.4,4000.9,1.74958]
[1733589020439,0.84694351,4001.4,4000.8,0.8081]
[1733589020651,0.84694351,4001.4,4000.9,1.07955075]
[1733589020925,0.84694351,4001.4,4001.3,2.55753]
[1733589021930,2.12720403,4002.4,4001.5,1.74932]
[1733589022339,2.12720403,4002.4,4001.3,2.55752]
[1733589022628,1.07955075,4002.1,4001.1,1.7495]
[1733589022937,0.33785507,4002.0,4001.1,1.7495]
[1733589023117,1.07955075,4002.1,4001.1,1.7495]
[1733589023600,1.07955075,4002.1,4001.0,0.7921]
[1733589024342,1.07955075,4001.8,4000.7,0.7921]
[1733589024542,1.07955075,4001.8,4000.1,7.7926157]
[1733589024543,1.07955075,4001.8,4000.6,1.74969]
[1733589024829,1.07955075,4001.8,4000.7,0.35848982]
[1733589025051,1.07955075,4001.8,4000.4,0.7921]
[1733589025331,1.07955075,4001.8,4000.3,1.74983]
[1733589025332,1.74939,4001.4,4000.3,1.74983]
[1733589028326,1.74939,4001.4,4000.1,1.2484994]
[1733589028530,1.74939,4001.4,4000.1,0.7921]
[1733589029134,1.74943,4001.3,4000.2,1.7499]
[1733589031647,1.74952,4001.1,4000.1,0.7921]
[1733589031943,1.74956,4001.0,4000.1,0.7921]
[1733589032353,1.74956,4001.0,3999.8,2.79318815]
[1733589032523,1.74956,4001.0,3999.9,1.81282598]
[1733589032715,1.61710316,4001.0,3999.9,0.51499504]
[1733589034011,1.74965,4000.8,3999.7,1.04310815]
[1733589034213,1.74965,4000.8,3999.6,0.7921]
[1733589034454,1.7497,4000.7,3999.7,1.29793435]
[1733589034629,1.7497,4000.7,3999.6,0.7921]
[1733589035043,1.04765328,4001.0,3999.3,1.83520815]
[1733589035044,1.74987,4000.3,3999.3,1.83520815]
[1733589035243,1.07955075,4000.3,3999.3,1.30713004]
[1733589035458,1.74996,4000.1,3999.3,0.51503004]
[1733589035760,1.74996,4000.1,3999.0,1.83520815]
[1733589035939,1.07955075,4000.3,3999.0,1.83520815]
[1733589035940,1.75,4000.0,3999.0,0.7921]
[1733589036146,1.75,4000.0,3998.8,2.83006075]
[1733589036529,1.75008,3999.8,3998.7,0.7921]
[1733589036855,1.75013,3999.7,3998.7,0.7921]
[1733589037028,1.75018,3999.6,3998.4,1.04310815]
[1733589037230,1.75018,3999.6,3998.5,0.62301511]
[1733589037436,1.75018,3999.6,3998.3,3.58593815]
[1733589037437,1.07955075,3999.4,3998.3,0.7921]
[1733589038457,1.07955075,3999.4,3998.2,1.75078]
[1733589038658,0.55,3999.4,3998.1,0.02500737]
[1733589039059,0.55,3999.6,3998.1,0.02500737]
[1733589039459,0.55,3999.6,3998.1,0.02500916]
[1733589039659,0.55,3999.6,3998.3,1.75074]
[1733589039957,0.46295508,3999.5,3998.5,1.75061]
[1733589040146,0.55,3999.7,3998.5,1.75061]
[1733589040923,0.55,3999.7,3998.2,1.87165075]
[1733589041238,0.55,3999.7,3998.7,1.75055]
[1733589042225,0.55,3999.7,3998.8,1.75051]
[1733589042425,0.71295508,3999.7,3998.8,1.75051]
[1733589043048,1.04765328,4000.3,3998.8,1.75051]
[1733589043049,1.07955075,4000.4,3998.9,1.75048]
[1733589043259,1.07955075,4000.4,3999.3,1.75027]
[1733589044349,0.55,4000.3,3999.3,1.75027]
[1733589045648,1.07955075,4000.1,3999.3,1.75027]
[1733589046271,1.07955075,4000.1,3999.0,1.7504]
[1733589046613,0.58294308,4000.0,3999.0,1.7504]
[1733589046898,0.58294308,4000.0,3999.1,1.75039]
[1733589047662,3.55,4000.6,3998.7,0.02500491]
[1733589047990,0.55,4000.4,3999.7,1.75012]
[1733589048852,1.04765328,4001.0,3999.2,0.8108]
[1733589049051,4.74954,4001.1,3999.2,0.8108]
[1733589049052,2.12720403,4001.1,4000.1,1.74993]
[1733589049255,1.07955075,4001.1,4000.1,1.74993]
[1733589049564,0.3876634,4001.0,4000.1,1.74993]
[1733589050291,0.55,4000.9,4000.1,1.74993]
[1733589052077,0.55,4000.9,3999.9,1.75004]
[1733589053687,0.55,4000.9,3999.9,1.75003]
[1733589054495,0.55,4000.9,3999.7,1.75012]
[1733589054652,5.29961,4000.9,3999.7,1.75012]
[1733589054853,0.55,4000.7,3999.7,1.75012]
[1733589055694,0.55,4000.7,3999.2,0.8108]
[1733589056195,0.55,4000.7,3999.6,1.75017]
[1733589056558,0.55,4000.7,3999.2,0.8108]
[1733589056759,0.55,4000.7,3999.8,1.75007]
[1733589056975,0.64589953,4000.6,3999.8,1.75007]
[1733589058058,0.64589953,4000.6,3999.9,1.75003]
[1733589060704,0.64589953,4000.6,3999.4,1.75026]
[1733589060705,0.64589953,4000.6,3999.7,1.75012]
[1733589062204,0.64589953,4000.6,3999.2,0.8108]
[1733589062507,0.64589953,4000.6,3999.5,1.75021]
[1733589062714,0.42927209,4000.5,3999.5,1.75021]
[1733589064043,0.42927209,4000.5,3999.6,1.75015]
[1733589066456,0.42927209,4000.5,3999.4,1.75025]
[1733589067124,1.74986,4000.4,3999.2,1.75035]
[1733589067765,0.42927209,4000.5,3999.2,1.75035]
[1733589068071,1.74988,4000.3,3999.2,1.75035]
[1733589068264,0.21791521,4000.2,3999.2,1.75035]
[1733589068560,1.96782521,4000.2,3998.9,0.7829]
[1733589068749,1.74991,4000.2,3998.9,0.7829]
[1733589069147,3.81719328,4000.5,3998.9,0.7829]
[1733589069373,1.74996,4000.1,3998.9,1.75047]
[1733589069668,3.81719328,4000.5,3998.9,1.75047]
[1733589069962,1.65107221,4000.4,3998.6,0.7829]
[1733589070168,2.34026791,4000.1,3998.5,1.75065]
[1733589070771,2.79756328,4000.2,3998.1,1.04310815]
[1733589070772,1.08088002,3999.3,3998.1,1.04310815]
[1733589070951,1.75035,3999.2,3998.0,0.7829]
[1733589071262,1.75043,3999.1,3998.0,1.14058882]
[1733589071463,1.75043,3999.1,3998.0,0.35768882]
[1733589071832,1.08088002,3999.3,3998.0,0.35768882]
[1733589072034,1.08088002,3999.3,3997.8,1.08088002]
[1733589072262,1.04765328,3999.5,3997.8,1.08088002]
[1733589072569,1.08088002,3999.6,3997.7,0.7829]
[1733589072570,1.75018,3999.6,3998.3,1.7507]
[1733589072927,1.75026,3999.4,3997.8,1.04310815]
[1733589073132,1.75026,3999.4,3998.1,0.55]
[1733589073133,1.7503,3999.4,3998.1,0.55]
[1733589073327,1.04765328,3999.7,3998.1,0.55]
[1733589073328,1.75031,3999.3,3998.1,0.55]
[1733589073529,1.75031,3999.3,3998.2,0.55]
[1733589073737,1.75031,3999.3,3998.2,2.30078]
[1733589073964,1.75037,3999.2,3998.0,0.55]
[1733589074270,1.75037,3999.2,3998.1,0.55]
[1733589074428,1.7504,3999.1,3997.9,0.55]
[1733589075075,0.175031,3999.3,3997.9,0.55]
[1733589075435,1.75052,3998.8,3997.9,0.55]
[1733589075868,0.175052,3998.8,3997.6,0.55]
[1733589076032,2.34181045,3998.8,3997.5,0.625]
[1733589076469,1.75074,3998.3,3997.5,0.625]
[1733589076675,1.7508,3998.2,3997.5,0.625]
[1733589076832,1.75087,3998.1,3997.5,0.625]
[1733589077031,1.75088,3998.0,3997.5,0.625]
[1733589077254,1.925968,3998.0,3997.5,0.625]
[1733589077479,1.75091,3997.9,3997.5,0.625]
[1733589077836,0.175088,3998.0,3997.5,0.625]
[1733589080341,0.175088,3998.0,3997.1,0.55]
[1733589080658,1.75078,3998.2,3997.1,0.55]
[1733589080989,1.75064,3998.6,3996.7,0.7829]
[1733589080990,1.75084,3998.1,3996.8,2.3014]
[1733589081280,3.51465392,3998.8,3996.8,2.3014]
[1733589081281,1.75087,3998.0,3996.8,2.3014]
[1733589081578,1.75065,3998.5,3996.9,1.75135]
[1733589081579,1.7508,3998.2,3996.9,1.75135]
[1733589081737,1.7508,3998.2,3997.0,0.55]
[1733589081941,1.7508,3998.2,3997.0,0.858425]
[1733589082141,1.7507,3998.4,3997.4,0.55]
[1733589082361,2.34181045,3998.7,3997.4,0.55]
[1733589082593,1.7507,3998.4,3997.4,0.55]
[1733589083399,1.75074,3998.3,3997.4,0.55]
[1733589084274,1.75065,3998.5,3997.4,0.55]
[1733589084972,1.75055,3998.8,3997.6,1.75102]
[1733589085215,1.75055,3998.8,3997.9,0.55]
[1733589085394,1.75043,3999.0,3997.9,0.55]
[1733589085980,0.84748941,3999.1,3997.9,0.55]
[1733589086283,0.84748941,3999.1,3998.1,0.55]
[1733589086480,0.84748941,3999.1,3998.1,0.915325]
[1733589086672,1.75035,3999.2,3998.1,0.915325]
[1733589087973,0.175031,3999.3,3998.1,0.915325]
[1733589088170,0.175031,3999.3,3997.8,0.8024]
[1733589088171,1.75061,3998.6,3997.9,0.55]
[1733589089320,1.75039,3999.1,3997.9,0.55]
[1733589089486,2.34181045,3999.3,3997.9,0.55]
[1733589089814,1.75048,3998.9,3997.9,0.55]
[1733589090573,2.34181045,3999.3,3997.9,0.55]
[1733589090805,2.06927411,3999.2,3997.9,0.55]
[1733589090975,1.75057,3998.7,3997.9,0.55]
[1733589091176,1.75062,3998.6,3997.9,0.55]
[1733589091371,1.75066,3998.5,3997.8,0.8024]
[1733589091675,1.75056,3998.8,3997.8,0.8024]
[1733589091875,0.175056,3998.7,3997.8,0.8024]
[1733589092181,1.925636,3998.7,3997.8,0.8024]
[1733589093827,1.75064,3998.6,3997.8,0.8024]
[1733589095076,0.175056,3998.7,3997.8,0.8024]
[1733589095278,0.31892411,3999.2,3997.0,1.3687]
[1733589095279,2.34181045,3998.4,3997.0,1.3687]
[1733589096177,1.75074,3998.3,3997.0,1.3687]
[1733589096386,4.09252045,3998.4,3997.0,1.3687]
[1733589096721,1.75074,3998.3,3997.0,1.3687]
[1733589096915,4.09251045,3998.4,3997.0,1.3687]
[1733589097124,1.75085,3998.1,3997.0,1.3687]
[1733589097511,0.40925105,3998.3,3997.1,0.8187]
[1733589097703,1.75075,3998.3,3997.4,0.55]
[1733589098014,1.75075,3998.3,3997.5,0.625]
[1733589099483,1.75082,3998.2,3997.5,0.625]
[1733589099817,2.34181045,3998.8,3997.5,0.625]
[1733589100031,1.75092,3997.9,3997.5,0.625]
[1733589100219,1.926012,3997.9,3997.5,0.625]
[1733589100727,0.175092,3997.9,3997.5,0.625]
[1733589101021,1.75102,3997.7,3997.5,0.625]
[1733589103109,1.75105,3997.6,3997.5,0.625]
[1733589106140,4.09286045,3997.6,3997.5,0.625]
[1733589107532,1.75105,3997.6,3997.5,0.625]
[1733589110436,3.38172112,3998.4,3997.5,0.625]
[1733589110643,1.75083,3998.1,3997.5,0.625]
[1733589110846,1.75092,3997.9,3997.5,0.625]
[1733589111136,1.75096,3997.8,3997.5,0.625]
[1733589111544,1.75088,3998.0,3997.5,0.625]
[1733589112342,1.75088,3998.0,3997.6,0.7597]
[1733589113434,1.75079,3998.2,3997.6,0.7597]
[1733589113629,0.49415871,3998.3,3997.6,0.7597]
[1733589113834,2.79061067,3998.4,3997.6,0.7597]
[1733589114047,1.7507,3998.4,3997.6,0.7597]
[1733589114832,1.75074,3998.3,3997.6,0.7597]
[1733589115422,2.79065067,3998.3,3997.6,0.7597]
[1733589115923,1.03991067,3998.3,3997.6,0.7597]
[1733589116147,1.55986601,3998.5,3997.7,0.13847]
[1733589116148,1.03991067,3998.5,3997.7,0.13847]
[1733589116319,1.03991067,3998.5,3997.6,0.7597]
[1733589117065,1.03991067,3998.6,3997.7,2.301]
[1733589117356,1.03991067,3998.6,3997.9,0.55]
[1733589118457,1.03991067,3998.5,3997.9,0.55]
[1733589119459,1.03991067,3998.5,3997.9,2.30089]
[1733589119764,1.03991067,3998.6,3998.1,0.7597]
[1733589119963,1.03991067,3998.7,3998.1,0.7597]
[1733589120216,1.03991067,3998.8,3998.2,1.3171]
[1733589120368,1.03991067,3998.8,3998.2,0.55]
[1733589120553,1.03991067,3998.8,3997.7,0.02501087]
[1733589120554,1.03991067,3998.8,3998.4,0.55]
[1733589120892,1.03991067,3998.9,3998.5,0.7671]
[1733589121096,0.39141678,3999.7,3998.5,0.7671]
[1733589121097,1.03991067,3999.0,3998.5,0.7671]
[1733589121590,1.03991067,3999.0,3998.6,0.55]
[1733589121899,2.6062698,3999.6,3997.8,2.34181045]
[1733589121900,1.03991067,3999.1,3998.8,0.55]
[1733589122053,1.03991067,3999.1,3998.9,0.7671]
[1733589122706,1.03991067,3999.2,3998.9,0.7671]
[1733589122850,1.03991067,3999.4,3998.9,0.7671]
[1733589123048,1.03991067,3999.3,3998.9,0.7671]
[1733589123254,1.03991067,3999.3,3999.0,0.55]
[1733589123566,1.03991067,3999.6,3999.2,0.55]
[1733589123801,1.03991067,3999.6,3999.3,0.7671]
[1733589123999,3.45873816,4000.2,3999.3,0.7671]
[1733589124000,1.03991067,3999.7,3999.3,0.7671]
[1733589124659,1.03991067,3999.8,3999.4,0.55]
[1733589126301,1.03991067,3999.9,3999.4,0.55]
[1733589126809,2.78998067,3999.9,3999.3,0.7671]
[1733589126950,0.43498467,3999.8,3999.3,0.7671]
[1733589127969,1.03991067,4000.0,3999.3,0.7671]
[1733589128597,2.78989067,4000.1,3999.3,0.7671]
[1733589129260,1.75001,4000.0,3999.3,0.7671]
[1733589129675,1.75005,3999.9,3999.3,0.7671]
[1733589129890,1.75004,3999.9,3999.3,0.7671]
[1733589130291,0.84731262,4000.2,3999.3,0.7671]
[1733589130292,0.27899507,3999.8,3999.3,0.7671]
[1733589130455,1.75009,3999.8,3999.3,0.7671]
[1733589131382,1.03991067,4000.0,3999.3,0.7671]
[1733589131589,2.78991067,4000.0,3999.3,0.7671]
[1733589131761,1.75018,3999.6,3999.3,0.7671]
[1733589132262,2.02918907,3999.6,3999.3,0.7671]
[1733589132591,2.02918907,3999.6,3998.5,1.3714]
[1733589133190,1.75022,3999.5,3998.5,1.3714]
[1733589133679,1.75028,3999.4,3998.5,1.3714]
[1733589133862,0.27900907,3999.6,3998.5,1.3714]
[1733589133863,1.7503,3999.3,3998.5,1.3714]
[1733589134057,1.75035,3999.2,3998.5,0.8214]
[1733589134257,1.75045,3999.0,3998.5,0.8214]
[1733589134859,1.95323091,3999.3,3998.5,0.8214]
[1733589135103,2.99314158,3999.3,3998.5,0.8214]
[1733589135308,1.24284158,3999.3,3997.7,0.8214]
[1733589135463,1.75054,3998.8,3997.8,0.319745]
[1733589135856,2.79711121,3999.2,3997.8,0.319745]
[1733589136095,1.75062,3998.6,3997.8,0.55]
[1733589136505,1.75043,3999.0,3997.8,0.55]
[1733589136666,1.75066,3998.5,3997.8,0.55]
[1733589139409,1.75048,3998.9,3997.8,0.55]
[1733589139608,1.75068,3998.5,3997.8,0.55]
[1733589140560,1.75074,3998.3,3997.8,0.55]
[1733589140764,1.75079,3998.2,3997.8,0.55]
[1733589140959,2.34181045,3998.8,3997.7,0.8214]
[1733589141200,0.66920371,3998.7,3997.7,0.8214]
[1733589141486,1.75092,3997.9,3997.7,0.8214]
[1733589142002,1.75103,3997.7,3997.5,0.625]
[1733589142372,1.75094,3997.9,3997.5,0.625]
[1733589142576,2.34181045,3998.4,3997.5,0.625]
[1733589142775,1.75096,3997.8,3997.5,0.625]
[1733589143920,1.75103,3997.7,3997.5,0.625]
[1733589145623,1.75105,3997.6,3997.5,0.625]
[1733589151515,1.75088,3998.0,3997.6,0.7912]
[1733589151720,1.37808278,3998.3,3997.6,0.7912]
[1733589151721,1.75091,3997.9,3997.6,0.7912]
[1733589152835,3.33817211,3998.3,3997.6,0.7912]
[1733589153036,1.75088,3998.0,3997.5,0.625]
[1733589153244,3.56888578,3998.2,3997.5,0.625]
[1733589153245,1.75105,3997.6,3997.5,0.625]
[1733589153909,1.75105,3997.6,3997.5,0.48]
[1733589154934,4.03991067,3998.1,3997.5,0.48]
[1733589154935,1.75095,3997.9,3997.6,0.7912]
[1733589155935,1.75103,3997.7,3997.5,0.48]
[1733589156137,1.926133,3997.7,3997.5,0.48]
[1733589156298,4.03991067,3998.1,3997.5,0.48]
[1733589156634,1.75093,3997.9,3997.5,0.48]
[1733589156999,1.75105,3997.6,3997.5,0.48]
[1733589160114,1.75105,3997.6,3996.9,0.7912]
[1733589160658,1.75096,3997.8,3997.0,0.55]
[1733589160824,1.75088,3998.0,3996.9,0.55]
[1733589161033,1.60879645,3998.2,3997.3,0.55]
[1733589161034,1.75101,3997.7,3997.3,0.55]
[1733589161388,1.75078,3998.2,3997.4,0.7997]
[1733589161519,1.75083,3998.1,3997.4,0.7997]
[1733589161853,1.75078,3998.2,3997.4,0.7997]
[1733589161854,1.75091,3998.0,3997.4,0.7997]
[1733589163018,1.75074,3998.4,3997.4,0.7997]
[1733589163317,1.75074,3998.4,3996.2,2.34181045]
[1733589163318,4.75074,3998.4,3997.6,0.7997]
[1733589163668,1.75074,3998.4,3997.8,0.7997]
[1733589164626,4.75061,3998.6,3997.8,0.7997]
[1733589164826,1.75061,3998.6,3997.8,0.7997]
[1733589165038,1.75065,3998.5,3997.8,0.7997]
[1733589165232,1.7507,3998.4,3997.8,0.7997]
[1733589166396,1.75074,3998.3,3997.8,0.7997]
[1733589166669,1.75092,3997.9,3997.5,0.7997]
[1733589166833,3.38172112,3998.5,3997.5,0.7997]
[1733589167041,1.75097,3997.8,3997.5,0.7997]
[1733589168621,2.34181045,3998.1,3996.6,0.7997]
[1733589168816,2.34181045,3998.1,3996.4,1.75157]
[1733589168817,1.75109,3997.5,3996.8,0.7997]
[1733589169058,1.75115,3997.4,3996.8,0.7997]
[1733589170849,1.75117,3997.4,3996.8,0.7997]
[1733589171050,0.175117,3997.4,3996.8,0.7997]
[1733589171261,1.75126,3997.2,3996.8,0.7997]
[1733589171465,0.175117,3997.4,3996.8,0.7997]
[1733589171764,1.75127,3997.1,3996.8,0.7997]
[1733589172428,1.75128,3997.1,3996.8,0.7997]
[1733589172862,0.175117,3997.4,3996.8,0.7997]
[1733589173159,1.75132,3997.0,3996.8,0.7997]
[1733589173543,0.175117,3997.4,3996.8,0.7997]
[1733589174143,1.75127,3997.1,3996.8,0.7997]
[1733589177216,1.75135,3996.9,3996.8,0.7997]
[1733589177427,1.75135,3996.9,3996.0,0.55]
[1733589177630,1.75135,3996.9,3995.9,0.7997]
[1733589177631,1.75135,3996.9,3996.2,0.55]
[1733589178138,1.75139,3996.9,3996.2,0.55]
[1733589178442,1.926549,3996.8,3996.2,0.55]
[1733589178592,1.75141,3996.8,3996.2,0.55]
[1733589179688,1.75145,3996.7,3996.2,0.55]
[1733589179901,1.03991067,3997.2,3996.2,0.55]
[1733589180097,3.90167646,3997.3,3996.2,0.55]
[1733589180098,1.75135,3997.0,3996.2,0.55]
[1733589180832,1.75136,3996.9,3996.2,0.55]
[1733589181004,2.03048707,3996.9,3996.2,0.55]
[1733589181998,0.27912707,3996.9,3996.2,0.55]
[1733589182198,1.75145,3996.7,3996.2,0.55]
[1733589182395,1.75162,3996.3,3995.4,1.04247694]
[1733589182707,1.03991067,3996.6,3995.5,0.7676]
[1733589182908,1.75157,3996.4,3995.5,0.7676]
[1733589183413,0.49415871,3996.5,3995.0,1.04247694]
[1733589183414,4.09343045,3996.3,3995.1,0.7676]
[1733589183611,1.75177,3996.0,3995.1,0.7676]
[1733589183913,2.34181045,3996.3,3995.1,0.7676]
[1733589184126,1.75171,3996.1,3995.1,0.7676]
[1733589184447,0.49415871,3996.5,3995.3,0.7676]
[1733589184644,0.49415871,3996.5,3995.5,0.7676]
[1733589184812,1.75171,3996.1,3995.5,0.7676]
[1733589185646,1.7519,3995.7,3994.9,0.55]
[1733589185867,4.75166,3996.2,3994.8,0.1522491]
[1733589185868,4.75166,3996.2,3995.0,0.7676]
[1733589185998,1.75188,3995.7,3995.0,0.7676]
[1733589187103,1.75192,3995.6,3995.0,0.7676]
[1733589188712,1.75192,3995.6,3994.9,0.55]
[1733589189151,0.96932471,3996.1,3994.9,0.55]
[1733589189323,1.75181,3995.9,3994.9,0.55]
[1733589189531,1.75181,3995.9,3995.0,0.14698491]
[1733589190719,1.75181,3995.9,3994.9,0.55]
[1733589190920,5.34181045,3996.3,3994.9,0.55]
[1733589191121,1.7518,3995.9,3994.9,0.55]
[1733589192923,1.7518,3995.9,3995.0,0.7601]
[1733589193259,1.75191,3995.7,3995.0,0.7601]
[1733589193767,1.75192,3995.6,3995.0,0.7601]
[1733589196243,5.34181045,3996.3,3995.0,0.7601]
[1733589196452,1.75183,3995.8,3995.0,0.7601]
[1733589196656,1.75188,3995.7,3995.0,0.7601]
[1733589198058,1.75175,3996.0,3995.0,0.7601]
[1733589198258,1.75194,3995.6,3995.0,0.7601]
[1733589199158,1.75175,3996.0,3995.0,0.7601]
[1733589199361,1.75199,3995.5,3995.0,0.7601]
[1733589203268,1.75199,3995.5,3995.1,0.55]
[1733589203664,2.84132911,3995.9,3995.1,0.55]
[1733589203868,1.75183,3995.8,3995.1,0.55]
[1733589204194,1.75201,3995.4,3995.1,0.55]
[1733589204362,1.75183,3995.8,3995.1,0.55]
[1733589204558,1.08292045,3995.6,3995.1,0.55]
[1733589204788,1.75208,3995.3,3995.1,0.55]
[1733589208201,1.08292045,3995.6,3995.1,0.55]
[1733589208401,0.27912707,3995.7,3995.1,0.55]
[1733589208563,1.75179,3995.9,3995.4,0.7835]
[1733589208764,1.75174,3996.1,3995.5,0.55]
[1733589209763,1.08292045,3996.4,3995.5,0.55]
[1733589209993,1.08292045,3996.4,3994.9,1.08292045]
[1733589209994,1.75155,3996.5,3995.9,0.55]
[1733589210265,1.03991067,3997.2,3996.2,0.7835]
[1733589210468,1.75136,3996.9,3996.3,0.55]
[1733589210969,1.7514,3996.8,3996.3,0.55]
[1733589213406,1.75145,3996.7,3996.3,0.55]
[1733589213610,1.75131,3997.0,3996.2,0.7835]